Cogmind - Beta 17 @@@ ROGUE MODE // 2026.07.29 @ 10:39:45 Player: OBLIQUE Result: Destroyed by S-43 Plague with Heavy Machine Gun Performance ------------- Evolutions (8) 4000 Regions Visited (19) 3800 Robots Destroyed (277) 1385 Value Destroyed (13419) 13419 Prototype IDs (45) 900 Alien Tech Used (0) 0 Bonus (11362) 11362 TOTAL SCORE: 34866 Bonus ------- Triggered High Security 500 High Alert Combat Kills 3739 Follower Combat Kills 2373 Entered Garrisons 600 Used RIF Installer 2000 Scanned by Researcher 500 Met Sigix 2000 Friendly Fire -350 Cogmind --------- Core Integrity 0/1450 Matter 70/300 Energy 98/100 System Corruption 2% Temperature Cool (9) Movement Core (50) Location -2/Quarantine Parts ------- > --- POWER (3) -------- (None) > --- PROPULSION (5) --- (None) > --- UTILITY (11) ----- Experimental Signal Interpreter Core Analyzer Core Analyzer Armor Integrity Analyzer Hacking Suite System Mapper Relay Coupler [Proto] (15) > --- WEAPON (4) ------- (None) > --- INVENTORY (5) ---- Perforator Advanced Remote Datajack Sigix Containment Pod Peak State ------------ > --- POWER ------------ Enhanced Fission Core Micro Antimatter Reactor Micro Antimatter Reactor > --- PROPULSION ------- Biometal Medium Treads Experimental Flexi-carbon Leg Biometal Leg Improved Thunder Leg > --- UTILITY ---------- Coolant Network Medium Storage Unit Enhanced Optical Array Long-range Sensor Array Advanced Signal Interpreter Advanced Target Analyzer Improved Armor Integrity Analyzer Centrium Medium Armor Plating Relay Coupler [Proto] > --- WEAPON ----------- Heavy Dispersion Rifle Compact HERF Cannon Helical Railgun Compact Linear Accelerator > --- INVENTORY -------- Power Amplifier Advanced Sensor Array System Mapper Relay Coupler [Proto] Relay Coupler [Proto] Potential Cannon Helical Railgun Helical Railgun Advanced Remote Datajack [Rating: 167] Favorites ----------- Power Heavy Ion Engine Engine Heavy Ion Engine Power Core Light Nuclear Core Reactor Micro Antimatter Reactor Propulsion Advanced Treads Treads Advanced Treads Leg Myomer Leg Hover Unit Improved Antigrav System Flight Unit Impulse Thruster Array Utility Large Storage Unit Device Cooling System Storage Large Storage Unit Processor Enhanced Optical Array Hackware Relay Coupler [Proto] Protection Improved Heavy Armor Plating Weapon Heavy Machine Gun Energy Gun Tesla Rifle Energy Cannon Compact HERF Cannon Ballistic Gun Heavy Machine Gun Ballistic Cannon Compact Linear Accelerator Launcher Gamma Bomb Array Special Weapon Improved Remote Datajack Piercing Weapon Force Lance Special Melee Weapon Datajack Build | -11 -10 -10 -10 -8 -8 -8 -8 -8 -6 -6 -5 -5 -4 -4 -4 -3 -3 -2 -2 ------- Run | Yrd Mat Min Sub Mat Gar Mat Sto Rec Fac Gar Fac Gar Fac Upp Upp Res Tes Res Qua Slots Evolved 16 | . . . . 4 . . . . 4 . 2 . 2 . . 2 . 2 . Power 2 | . . . . . . . . . . . 2 . . . . . . . . Propulsion 3 | . . . . 1 . . . . 1 . . . . . . . . 1 . Utility 9 | . . . . 2 . . . . 3 . . . 2 . . 1 . 1 . Weapon 2 | . . . . 1 . . . . . . . . . . . 1 . . . Parts Attached 234 | 5 15 . . 10 14 5 6 . 5 13 3 20 39 1 1 26 49 17 5 Power 28 | 1 2 . . 2 1 . 2 . . 3 1 3 3 . . 4 6 . . Engine 6 | 1 2 . . 1 . . 1 . . . 1 . . . . . . . . Core 10 | . . . . 1 1 . 1 . . 1 . 2 3 . . 1 . . . Reactor 12 | . . . . . . . . . . 2 . 1 . . . 3 6 . . Propulsion 52 | 2 2 . . 4 3 1 2 . 1 3 . 3 8 . . 4 11 5 3 Treads 23 | 2 2 . . 4 3 1 2 . 1 3 . 2 1 . . . 1 1 . Leg 17 | . . . . . . . . . . . . . 2 . . 2 8 4 1 Wheel . | . . . . . . . . . . . . . . . . . . . . Hover 1 | . . . . . . . . . . . . . 1 . . . . . . Flight 11 | . . . . . . . . . . . . 1 4 . . 2 2 . 2 Utility 102 | . 6 . . 2 3 2 . . 4 6 1 7 23 1 1 12 20 12 2 Device 38 | . 2 . . . 1 1 . . 2 2 . 1 9 1 . 6 7 5 1 Storage 12 | . 2 . . 1 . 1 . . 1 1 . . . . . 3 2 1 . Processor 23 | . 2 . . . . . . . . . . 3 7 . . 2 4 5 . Hackware 14 | . . . . . . . . . 1 . . 1 6 . 1 1 2 1 1 Protection 15 | . . . . 1 2 . . . . 3 1 2 1 . . . 5 . . Artifact . | . . . . . . . . . . . . . . . . . . . . Weapon 52 | 2 5 . . 2 7 2 2 . . 1 1 7 5 . . 6 12 . . Energy Gun 11 | . . . . . . . . . . . . 3 1 . . 4 3 . . Energy Cannon 3 | . . . . . . . . . . . . . . . . 1 2 . . Ballistic Gun 24 | 2 5 . . 2 6 1 1 . . 1 1 . . . . 1 4 . . Ballistic Cannon 3 | . . . . . . . . . . . . 1 . . . . 2 . . Launcher 4 | . . . . . 1 . 1 . . . . 2 . . . . . . . Special Weapon 4 | . . . . . . . . . . . . 1 2 . . . 1 . . Impact Weapon . | . . . . . . . . . . . . . . . . . . . . Slashing Weapon . | . . . . . . . . . . . . . . . . . . . . Piercing Weapon 1 | . . . . . . . . . . . . . 1 . . . . . . Special Melee Weapon 2 | . . . . . . 1 . . . . . . 1 . . . . . . Unidentified Prototypes 35 | . 1 . . . . . 3 . . . . 5 3 . . 6 16 . 1 Parts Lost 70 | . . . . . 1 . 1 . . 1 . 8 22 . . 3 22 2 10 Power 10 | . . . . . . . 1 . . . . 3 3 . . . 3 . . Propulsion 20 | . . . . . . . . . . . . . 6 . . . 8 2 4 Utility 30 | . . . . . 1 . . . . 1 . 3 8 . . 1 10 . 6 Weapon 10 | . . . . . . . . . . . . 2 5 . . 2 1 . . Highest Loss Streak 14 | . . . . . 1 . 1 . . 1 . 5 14 . . 2 4 2 6 To Critical Strikes 3 | . . . . . . . . . . . . . 1 . . . 2 . . Average Backups 10 | . 6 10 10 9 9 10 14 14 14 13 13 13 9 5 5 5 8 3 3 Power . | . 1 1 1 . . . . . 1 . . . . . . . . 1 . Propulsion 1 | . 2 3 3 4 2 1 1 2 1 2 2 1 1 . . . . . . Utility 4 | . 1 3 3 1 2 5 5 5 4 5 6 8 6 3 3 2 4 1 . Weapon 3 | . 1 2 2 2 3 3 6 6 6 4 3 1 1 1 1 . 3 . . Tool/Special . | . . . . . . . . . . . . . . . . . . . . Unused Backups 31 | . . . . 2 2 . 4 9 . 6 . . 3 . . 1 3 . 1 Power 3 | . . . . . . . 1 . . 1 . . . . . . . . 1 Propulsion 2 | . . . . 1 . . . . . . . . 1 . . . . . . Utility 20 | . . . . 1 1 . 2 9 . 4 . . 2 . . . 1 . . Weapon 5 | . . . . . 1 . 1 . . 1 . . . . . . 2 . . Tool/Special 1 | . . . . . . . . . . . . . . . . 1 . . . Average Slot Usage (%) 86 | . 92 100 100 95 95 89 88 90 85 89 87 85 69 81 80 78 88 56 48 Engine 3 | . 14 14 14 5 1 . 6 9 6 1 5 3 2 . . . . . . Core 3 | . . . . 3 7 9 2 . . . 4 5 4 10 10 8 4 . . Reactor 2 | . . . . . . . . . . 4 5 5 . . . 2 7 . . Treads 16 | . 28 28 28 27 27 26 27 27 26 18 11 11 6 . . . 1 1 . Leg 2 | . . . . . . . . . . . . . 1 . . 5 14 15 3 Device 9 | . 4 . . 8 9 9 9 9 12 15 11 6 6 11 10 11 9 2 5 Storage 8 | . 10 14 14 10 13 9 9 9 12 16 16 11 4 . . 1 3 2 1 Processor 7 | . 6 14 14 7 . . . . . . . 6 17 27 26 20 19 24 25 Hackware 1 | . . . . . . . . . . . . 1 9 5 7 6 1 7 9 Protection 6 | . . . . 5 8 9 8 9 6 10 11 12 . . . . 3 . . Energy Gun 1 | . . . . . . . . . . . . 3 2 5 5 4 5 . . Ballistic Gun 15 | . 28 28 28 26 26 26 25 25 20 19 17 7 . . . . 2 . . Peak Build Rating 167 | 5 12 12 12 33 44 44 45 45 60 86 96 113 123 99 98 151 167 123 87 Average Rating 74 | 4 7 12 12 28 38 43 44 43 54 74 93 101 90 96 95 129 151 84 68 On Entrance 58 | . 5 12 12 12 33 44 43 45 44 60 84 96 113 99 94 98 150 50 70 Avg Prop Armor Cover (%) 21 | . . . . . . . . . . . . 25 22 . . 2 8 42 31 Naked Turns 2 | . . . . . . . . . . . . . 2 . . . . . . Heaviest Build 117 | 8 21 21 21 41 46 57 60 60 70 85 114 117 79 28 27 56 107 3 3 Greatest Support 135 | 40 40 40 40 66 66 66 66 62 90 135 135 135 130 27 27 56 101 30 30 Greatest Overweight (x) 2 | . . . . . . 1 . . . . . 1 1 1 . 1 2 . . Average Overweight (x) . | . . . . . . . . . . . . . . . . . . . . Largest Inventory Capacity 25 | 5 10 10 10 10 10 15 15 15 15 15 15 15 15 5 5 25 10 5 5 Average Capacity 11 | 5 8 10 10 10 10 11 15 15 15 15 15 15 10 5 5 5 9 5 5 Most Carried 15 | 1 10 10 10 10 10 13 15 15 15 15 15 15 15 5 5 10 10 5 5 Average Carried 11 | . 6 10 10 9 9 10 14 14 14 13 13 14 9 5 5 5 9 4 4 Final Capacity 15 | 5 10 10 10 10 10 15 15 15 15 15 15 15 5 5 5 10 5 5 5 Final Carried 15 | 1 10 10 10 10 10 12 15 14 15 15 15 15 5 5 5 9 5 5 5 Class Distribution -------------------- 30% | Commander-Tank 15% | Tank 9% | Mutant 8% | Skirmisher 5% | Bothacker-Tank 5% | Scavenger-Skirmisher 4% | Scout 4% | Hacker-Mutant 3% | Bothacker-Gunner Dominant Class ---------------- Mutant | -10/Materials Mutant | -10/Mines Mutant | -10/Subcaves Gunner | -8/Materials Tank | -8/Garrison Tank | -8/Materials Tank | -8/Storage Commander-Tank | -8/Recycling Commander-Tank | -6/Factory Commander-Tank | -6/Garrison Bothacker-Tank | -5/Factory Bothacker-Tank | -5/Garrison Bothacker-Gunner | -4/Factory Scout | -4/Upper Caves Scout | -4/Upper Caves Skirmisher | -3/Research Skirmisher | -3/Testing Hacker-Mutant | -2/Research Hacker-Mutant | -2/Quarantine Resources | -11 -10 -10 -10 -8 -8 -8 -8 -8 -6 -6 -5 -5 -4 -4 -4 -3 -3 -2 -2 ----------- Run | Yrd Mat Min Sub Mat Gar Mat Sto Rec Fac Gar Fac Gar Fac Upp Upp Res Tes Res Qua Matter Collected 10268 | 262 590 . 25 348 600 1053 800 374 395 910 142 941 853 10 10 335 2428 109 83 Remotely . | . . . . . . . . . . . . . . . . . . . . Salvage Created 13498 | 54 781 . . 522 704 1202 1174 340 387 762 290 1254 883 55 134 537 4338 81 . Parts 630 | 2 26 . . 21 45 76 61 19 24 34 17 63 58 . 1 21 157 5 . Haulers Intercepted 13 | . 2 . . 2 . 3 5 . . . . 1 . . . . . . . Recyclers Shooed 10 | . 3 . . 3 . 1 . . . . . . 1 . . 1 1 . . Parts Field Recycled . | . . . . . . . . . . . . . . . . . . . . Retrieved Matter . | . . . . . . . . . . . . . . . . . . . . Parts Self-Destructed . | . . . . . . . . . . . . . . . . . . . . Prevented 1 | . . . . . . . . . . . . . . 1 . . . . . Parts Restored . | . . . . . . . . . . . . . . . . . . . . Kills | -11 -10 -10 -10 -8 -8 -8 -8 -8 -6 -6 -5 -5 -4 -4 -4 -3 -3 -2 -2 ------- Run | Yrd Mat Min Sub Mat Gar Mat Sto Rec Fac Gar Fac Gar Fac Upp Upp Res Tes Res Qua Combat Hostiles Destroyed 194 | . 7 . . 6 17 18 15 6 8 16 7 18 20 . . 6 49 1 . Melee 12 | . . . . . . . . . . . . 1 8 . . 2 1 . . Guns 136 | . 7 . . 6 15 18 15 6 8 16 7 12 . . . . 26 . . Cannons 32 | . . . . . . . . . . . . 1 9 . . 2 19 1 . AOE 7 | . . . . . 2 . . . . . . 3 2 . . . . . . Classes Destroyed 23 | 1 4 . . 4 2 2 . 3 . . . 2 . . . . 5 . . Worker 12 | . . . . . . 2 2 . 1 . . . 1 . . . 6 . . Builder 13 | . . . . 1 . . 1 . 2 . . . 3 . . 1 5 . . Hauler 13 | . 2 . . 2 . 3 5 . . . . 1 . . . . . . . Recycler 15 | 1 5 . . 1 . 2 1 1 . . . . . . . . 4 . . Mechanic 1 | . . . . . . . . . . . . 1 . . . . . . . Operator 2 | . . . . . . 1 . . . . . . . . . . 1 . . Watcher 20 | . 2 . . 3 . 4 2 . 1 . . . 3 . . 3 2 . . Swarmer 25 | . 3 . . . 3 . . . 2 5 4 3 5 . . . . . . Saboteur 2 | . . . . . . . . . . . . . . . . . 2 . . Grunt 62 | . 4 . . 3 6 5 8 . 2 6 . 1 4 . . . 23 . . Brawler 4 | . . . . 1 . . . . . . . . . . . . 3 . . Duelist 5 | . . . . 1 1 3 . . . . . . . . . . . . . Protector 1 | . . . . . . . . . . . . 1 . . . . . . . Researcher 4 | . . . . . . . . . . . . . . . . . 4 . . Sentry 28 | . . . . 1 3 7 6 1 1 2 2 2 1 . . 1 . 1 . Demolisher 2 | . . . . . . . . 1 1 . . . . . . . . . . Specialist 4 | . . . . . 1 . . . . 2 . 1 . . . . . . . Hunter 32 | . . . . . 3 3 1 . 1 1 1 5 2 . . 2 13 . . Programmer 24 | . . . . . . . . 1 1 1 . 5 8 . . 3 5 . . Q-Series 1 | . . . . . . . . . . . . . . . . . 1 . . Striker 2 | . . . . . . . . . . . . . . . . . 2 . . Alpha 7 1 | . . . . . . . . . . . . . . . . . 1 . . Subdweller 3 | . . . . . . . . 3 . . . . . . . . . . . Packrat 3 | . . . . . . . . . . . . . . 1 2 . . . . Infiltrator 1 | . . . . . . . . . . . . 1 . . . . . . . Best Kill Streak 7 | 1 3 . . 6 3 4 7 2 5 5 2 7 6 . . 2 7 1 . Combat Bots Only 6 | . 3 . . 3 3 2 5 2 2 5 2 5 3 . . 2 6 1 . Max Kills in Single Turn 3 | 1 1 . . 1 1 2 2 1 2 2 2 3 1 1 1 2 2 1 . Gunslinging 1 | . . . . . . . . . 1 1 1 1 . . . . . . . Exploded 1 | . . . . . 1 . . . . . . 1 1 . . . . . . Melee 1 | . . . . . . . . . . . . 1 1 . . 1 1 . . Uniques/NPCs Destroyed . | . . . . . . . . . . . . . . . . . . . . Combat | -11 -10 -10 -10 -8 -8 -8 -8 -8 -6 -6 -5 -5 -4 -4 -4 -3 -3 -2 -2 -------- Run | Yrd Mat Min Sub Mat Gar Mat Sto Rec Fac Gar Fac Gar Fac Upp Upp Res Tes Res Qua Hostile Shots Fired 1877 | . 42 . 1 16 85 57 68 16 55 108 24 218 332 2 . 88 445 36 284 Missed 686 | . 12 . . 6 26 12 20 6 19 37 7 47 112 1 . 46 144 13 178 Hits 1191 | . 30 . 1 10 59 45 48 10 36 71 17 171 220 1 . 42 301 23 106 Melee 15 | . . . . 1 2 . . . . . . 1 . . . . 6 5 . Projectile 1176 | . 30 . 1 9 57 45 48 10 36 71 17 170 220 1 . 42 295 18 106 AOE 6 | . . . . . . . . . 3 2 . . . . . . . 1 . Critical Strikes 48 | . . . . . 4 3 2 . . 1 . 8 6 . . . 16 2 6 Part Disruptions 2 | . . . . . . . . . . . . . 1 . . 1 . . . Damage Taken 22124 | . 340 . 16 217 943 696 769 190 399 1075 224 3393 4169 17 . 969 5675 873 2159 Core 3809 | . 62 . . 14 86 46 27 17 15 92 21 192 858 . . 223 696 191 1269 Absorbed by Shields 994 | . . . . . . . . 15 103 232 212 410 22 . . . . . . Reduced by Siege Mode 350 | . . . . . . . . . . . . 301 49 . . . . . . Regen/Repaired (Parts) 878 | . . . . . . 123 755 . . . . . . . . . . . . Core Remaining (%) 65 | 100 . . 75 . . . . 65 . 87 . 78 . . 25 . 29 . . Volleys Fired 671 | 3 58 . . 25 46 63 54 25 18 50 15 63 75 . . 17 153 4 2 Largest 4 | 2 2 . . 3 3 3 3 3 3 3 3 3 2 . . 4 4 1 1 Hottest 315 | 40 46 . . 71 90 90 90 90 90 90 88 175 138 . . 311 315 100 100 Shots Fired 1821 | 6 116 . . 75 125 189 158 75 54 152 45 161 88 . . 55 516 4 2 Gun 1418 | 6 116 . . 75 118 189 158 75 54 152 45 137 5 . . 26 262 . . Cannon 359 | . . . . . . . . . . . . 10 65 . . 29 249 4 2 Launcher 28 | . . . . . 7 . . . . . . 13 8 . . . . . . Special 16 | . . . . . . . . . . . . 1 10 . . . 5 . . Kinetic 1433 | 6 116 . . 75 118 189 158 75 54 152 45 129 65 . . 12 233 4 2 Thermal 106 | . . . . . . . . . . . . 10 . . . 1 95 . . Explosive 7 | . . . . . 7 . . . . . . . . . . . . . . Electromagnetic 259 | . . . . . . . . . . . . 21 13 . . 42 183 . . Robot Hit Streak 22 | 2 14 . . 10 22 14 16 17 12 16 5 20 8 . . 9 14 . . Robot Miss Streak 7 | 1 4 . . 5 3 6 4 3 3 4 4 2 3 . . 5 7 . . Penetration Max 1 | . . . . . . . . . . . . 1 . . . . 1 . . Secondary Targets 31 | . 3 . . 1 4 2 4 1 2 6 2 6 . . . . . . . Max Gunslinging Chain 2 | . 1 . . 1 1 1 1 1 1 2 1 1 . . . . . . . Shots Hit Robots 1176 | 3 78 . . 45 74 104 92 115 38 90 26 122 67 1 2 47 272 . . Core Hits 487 | 2 30 . . 23 32 43 38 11 18 38 12 73 34 . 1 10 120 2 . Critical Kills 19 | . . . . . 1 . . 1 1 1 . . . . . . 14 1 . Critical Parts Destroyed 27 | . . . . . 2 1 . . . . . 2 . . . . 22 . . Critical Strikes 71 | . . . . . 3 1 . 1 1 1 . 2 7 . . 4 50 1 . Destroy 47 | . . . . . 3 1 . 1 1 1 . 2 . . . . 37 1 . Blast 14 | . . . . . . . . . . . . . 6 . . 1 7 . . Corrupt 8 | . . . . . . . . . . . . . . . . 2 6 . . Impale 2 | . . . . . . . . . . . . . 1 . . 1 . . . Melee Attacks 179 | . . . . . . . 1 85 . 6 . . 41 4 8 34 . . . Impact . | . . . . . . . . . . . . . . . . . . . . Slashing . | . . . . . . . . . . . . . . . . . . . . Piercing 87 | . . . . . . . . . . . . . 41 4 8 34 . . . Sneak Attacks 94 | . . . . . . . 1 84 . 6 . . . 1 2 . . . . Combat Hostiles . | . . . . . . . . . . . . . . . . . . . . Follow-up Attacks . | . . . . . . . . . . . . . . . . . . . . Damage Inflicted 31508 | 35 933 3 . 910 1323 2500 2165 746 838 2231 550 3516 2951 129 137 1925 10594 14 8 Guns 19192 | 35 933 . . 873 1140 2449 2133 746 817 2231 550 2123 54 . . 402 4706 . . Cannons 8652 | . . . . . . . . . . . . 238 1869 . . 847 5690 8 . Explosions 2044 | . . . . . 183 . . . . . . 1141 461 . . 158 101 . . Melee 1296 | . . . . . . . . . . . . . 531 129 137 499 . . . Ramming 324 | . . 3 . 37 . 51 32 . 21 . . 14 36 . . 19 97 6 8 Kinetic 21125 | 35 933 . . 873 1140 2449 2133 746 817 2231 550 2180 1869 . . 457 4704 8 . Thermal 2292 | . . . . . . . . . . . . 291 59 . . 158 1784 . . Explosive 183 | . . . . . 183 . . . . . . . . . . . . . . Electromagnetic 6288 | . . . . . . . . . . . . 1031 456 . . 792 4009 . . Impact . | . . . . . . . . . . . . . . . . . . . . Slashing . | . . . . . . . . . . . . . . . . . . . . Piercing 1296 | . . . . . . . . . . . . . 531 129 137 499 . . . Highest Corruption 13 | . . . . . . 2 2 2 1 1 . 6 3 . . 7 13 . 1 Average Corruption 3 | . . . . . . 2 2 2 1 1 . 4 2 . . 5 6 . 1 Corruption Purged 5 | . . . . . . . . . . . . . . 5 . . . . . Corruption Blocked . | . . . . . . . . . . . . . . . . . . . . Effects 208 | . . . . . . 9 18 36 . 15 . 21 6 . . 22 81 . . Message Errors 38 | . . . . . . 2 4 6 . 2 . 8 . . . 4 12 . . Matter Fused 51 | . . . . . . 2 4 14 . 4 . 6 1 . . 3 17 . . Heat Flow Errors 32 | . . . . . . 2 4 6 . 1 . 1 . . . 5 13 . . Energy Discharges 23 | . . . . . . 3 2 5 . 1 . 1 . . . 3 8 . . Parts Rejected 5 | . . . . . . . . . . 1 . 1 . . . 1 2 . . Parts Fused 1 | . . . . . . . . . . . . . . . . . 1 . . Data Loss (minor) 22 | . . . . . . . . 3 . 2 . 3 2 . . 4 8 . . Data Loss (major) 7 | . . . . . . . . 1 . 2 . . 1 . . . 3 . . Misfires 8 | . . . . . . . . . . 2 . . 1 . . 1 4 . . Alerts 3 | . . . . . . . . 1 . . . . 1 . . . 1 . . Weapon Failures 18 | . . . . . . . 4 . . . . 1 . . . 1 12 . . Overload Shots . | . . . . . . . . . . . . . . . . . . . . Overflow Damage 701 | . . . . . . . . . . . . 21 182 114 45 190 149 . . Projectiles 278 | . . . . . . . . . . . . 1 67 . . 61 149 . . Explosions 38 | . . . . . . . . . . . . 20 . . . 18 . . . Melee 385 | . . . . . . . . . . . . . 115 114 45 111 . . . Knockbacks 46 | . . . . 1 . 1 . . 1 . . 1 8 . . 4 30 . . Impact 4 | . . . . 1 . 1 . . 1 . . . . . . . 1 . . Kinetic 38 | . . . . . . . . . . . . 1 7 . . 4 26 . . Secondary 4 | . . . . . . . . . . . . . 1 . . . 3 . . Self-Inflicted Damage 137 | . . . . . 14 . . . . . . 100 19 . . . . . 4 Shots 12 | . . . . . 2 . . . . . . 8 2 . . . . . . Rammed 23 | . . 2 . 5 . 5 2 . 3 . . 1 3 . . . . . 2 Targets Rammed 42 | . . 2 . 5 . 6 3 . 4 . . 2 4 . . 1 8 5 2 Kicked 14 | . . . . . . . . . . . . . . . . 1 8 5 . Crushed 5 | . . . . . . 1 1 . 1 . . 1 1 . . . . . . Highest Temperature 392 | . 15 . . . 33 255 235 226 . 200 27 264 138 . . 392 280 . . Average Temperature 51 | . 8 . . . 16 29 31 45 . 118 8 68 58 . . 127 87 . . Received Heat Transfer 2938 | . 162 . . 99 144 252 396 14 26 233 12 502 78 9 . 42 834 72 63 Effects 3 | . . . . . . . 3 . . . . . . . . . . . . Interference 3 | . . . . . . . 3 . . . . . . . . . . . . Siege Activations 3 | . . . . . . . . . . . . 2 1 . . . . . . Total Turns 88 | . . . . . . . . . . . . 78 10 . . . . . . Longest Duration 74 | . . . . . . . . . . . . 74 10 . . . . . . Martial Activations . | . . . . . . . . . . . . . . . . . . . . Shielding Activations . | . . . . . . . . . . . . . . . . . . . . Robots Disrupted 1 | . . . . . . . . . . . . 1 . . . . . . . Combat Hostiles 1 | . . . . . . . . . . . . 1 . . . . . . . Robots Corrupted 7 | . . . . . . . . . . . . 1 1 . . 2 3 . . Combat Hostiles 7 | . . . . . . . . . . . . 1 1 . . 2 3 . . Parts Fried 37 | . . . . . . . . . . . . 8 3 . . 3 23 . . Impact Corruptions 1 | . . . . . . . . . . . . . 1 . . . . . . Robots Melted . | . . . . . . . . . . . . . . . . . . . . Combat Hostiles . | . . . . . . . . . . . . . . . . . . . . Parts Melted 7 | . . . . . 2 . . 1 1 . . 2 . . . . 1 . . Heat Transferred 2731 | . . . . . . . . . . . . 385 50 . . 100 2196 . . Parts Sabotaged 5 | . . . . . . . . . . . . 1 . . . . 4 . . Parts Stolen . | . . . . . . . . . . . . . . . . . . . . Parts Stripped . | . . . . . . . . . . . . . . . . . . . . Power Chain Reactions 5 | . . . . . . . . . . . . 3 . . . 1 1 . . Alert | -11 -10 -10 -10 -8 -8 -8 -8 -8 -6 -6 -5 -5 -4 -4 -4 -3 -3 -2 -2 ------- Run | Yrd Mat Min Sub Mat Gar Mat Sto Rec Fac Gar Fac Gar Fac Upp Upp Res Tes Res Qua Maximum Alert Level 5 | . . . . . 3 2 1 . 2 5 5 5 4 . . 1 4 3 2 Low Security (%) 39 | 100 100 100 . 100 11 31 67 100 53 . . . . . . 55 19 . . Level 1 15 | . . . . . 44 32 32 . 16 1 . . . . . 44 30 . 7 Level 2 10 | . . . . . 42 36 . . 29 9 . . . . . . 14 . 92 Level 3 11 | . . . . . . . . . . 8 . . 74 . . . 9 100 . Level 4 9 | . . . . . . . . . . 7 80 26 25 . . . 25 . . Level 5 13 | . . . . . . . . . . 73 1 73 . . . . . . . High Security . | . . . . . . . . . . . 18 . . . . . . . . Max Security . | . . . . . . . . . . . . . . . . . . . . Peak Influence 2493 | 5 95 . . 163 716 525 294 108 556 2493 1881 1997 1187 . . 369 1538 912 496 Initial 1320 | . . . . . 99 349 75 108 9 352 1308 1320 1047 . . 291 72 864 461 Average 631 | . 31 . . 56 386 330 177 14 222 1826 1522 1680 1060 . . 215 621 798 452 Influence Increases 12098 | 5 227 . . 283 647 648 735 286 902 2351 758 837 969 60 . 574 2284 357 175 Destroy 0b10 Robot/C 5220 | . 140 . . 160 360 360 340 120 300 820 340 480 400 . . 120 1260 20 . Destroy 0b10 Robot/NC 435 | 5 45 . . 40 . 60 60 10 20 . 15 15 35 . . 20 110 . . Destroy Leader 936 | . 38 . . 50 20 154 114 . 82 50 70 50 86 . . 46 166 10 . Allied During Kill 1901 | . . . . 12 14 . 93 114 401 856 206 44 . . . . 161 . . Successful Hack 450 | . 4 . . 18 . 37 61 27 18 58 . 16 49 . . 44 21 87 10 Disable Machine 405 | . . . . . . 15 15 . 30 . 75 . 150 . . 15 105 . . Anti-Garrison Action 700 | . . . . . 150 . . . . 450 . 100 . . . . . . . Destroy Structure 806 | . . . . 3 88 22 22 15 36 72 52 87 174 . . 44 176 15 . Partial Spotted 60 | . . . . . . . . . . . . . 15 . . . . 30 15 Lose Combat Pursuer 1185 | . . . . . 15 . 30 . 15 45 . 45 60 60 . 285 285 195 150 Influence Decreases 11652 | 5 227 . . 130 84 1185 636 541 422 361 1365 726 1878 514 201 878 875 1074 550 Entered New Map 5319 | . . . . . 54 367 104 170 14 151 1185 566 950 404 121 142 57 674 360 Time Decay 4186 | 5 227 . . 130 . 518 522 371 217 . 110 . 538 110 80 446 602 230 80 Search Patrol Dispatched 100 | . . . . . . . . . . . . . . . . 100 . . . Lost Part 696 | . . . . . 10 . 10 . . 10 . 80 220 . . 30 216 20 100 Lost Ally 601 | . . . . . 20 . . . 191 200 70 80 20 . . 10 . . 10 Purge Threat 750 | . . . . . . 300 . . . . . . 150 . . 150 . 150 . Squads Dispatched 63 | . 1 . . 2 . 2 2 . 4 . 5 . 17 . . 4 17 6 3 Investigation 6 | . 1 . . . . . 2 . . . . . 3 . . . . . . Extermination 16 | . . . . . . . . . 1 . . . 5 . . 3 4 3 . Reinforcement 22 | . . . . . . 2 . . 1 . 2 . 3 . . 1 8 2 3 Assault 12 | . . . . . . . . . . . . . 6 . . . 5 1 . Garrison 7 | . . . . 2 . . . . 2 . 3 . . . . . . . . Intercept . | . . . . . . . . . . . . . . . . . . . . Searches Triggered 1 | . . . . . . . . . . . . . . . . 1 . . . Construction Impeded 3 | . . . . . . . . . 1 . . . . . . . 2 . . Haulers Reinforced 2 | . . . . . . . . . . . 1 . 1 . . . . . . Active Scanning Responses . | . . . . . . . . . . . . . . . . . . . . Cargo Convoy Interrupts 1 | . . . . . . . . . . . . . . . . 1 . . . Stealth | -11 -10 -10 -10 -8 -8 -8 -8 -8 -6 -6 -5 -5 -4 -4 -4 -3 -3 -2 -2 --------- Run | Yrd Mat Min Sub Mat Gar Mat Sto Rec Fac Gar Fac Gar Fac Upp Upp Res Tes Res Qua Distress Signals 23 | . 1 . . 1 . 4 4 2 . . . . 3 . . 1 5 1 1 Communications Jammed 134 | . . . . . . . . . . . . . 134 . . . . . . Distress Signals 134 | . . . . . . . . . . . . . 134 . . . . . . Times Spotted 461 | . 12 . 2 14 19 32 25 7 17 37 17 36 43 3 . 37 100 22 38 Peak Tracking Total 23 | . 3 . 2 4 4 4 6 2 4 5 6 11 7 4 . 9 10 8 23 Tactical Retreats 31 | . . . . . 1 . 2 . 1 1 . 2 3 1 . 5 7 5 3 Traps | -11 -10 -10 -10 -8 -8 -8 -8 -8 -6 -6 -5 -5 -4 -4 -4 -3 -3 -2 -2 ------- Run | Yrd Mat Min Sub Mat Gar Mat Sto Rec Fac Gar Fac Gar Fac Upp Upp Res Tes Res Qua Traps Triggered 17 | . 1 . . . 5 1 3 . . 2 . 1 3 . . 1 . . . Indirectly 1 | . . . . . . . . . . . . 1 . . . . . . . Trap Hack Attempts 56 | . . . . . . 28 28 . . . . . . . . . . . . Triggered . | . . . . . . . . . . . . . . . . . . . . Disarmed . | . . . . . . . . . . . . . . . . . . . . Reprogrammed 5 | . . . . . . 3 2 . . . . . . . . . . . . Reused . | . . . . . . . . . . . . . . . . . . . . Traps Extracted . | . . . . . . . . . . . . . . . . . . . . Installed . | . . . . . . . . . . . . . . . . . . . . Triggered . | . . . . . . . . . . . . . . . . . . . . Machines | -11 -10 -10 -10 -8 -8 -8 -8 -8 -6 -6 -5 -5 -4 -4 -4 -3 -3 -2 -2 ---------- Run | Yrd Mat Min Sub Mat Gar Mat Sto Rec Fac Gar Fac Gar Fac Upp Upp Res Tes Res Qua Machines Disabled 40 | . . . . . 2 1 1 . 2 5 5 2 10 . . 1 10 . 1 Max in Single Turn 8 | . . . . . 2 1 1 . . 1 . 1 8 . . 1 1 . 1 Garrison Access 5 | . . . . . . 1 1 . . . . . 1 . . 1 1 . . Garrison Relay 4 | . . . . . . . . . . 2 . 2 . . . . . . . Phase Generator 2 | . . . . . 1 . . . . 1 . . . . . . . . . Machines Repaired . | . . . . . . . . . . . . . . . . . . . . Machines Dismantled . | . . . . . . . . . . . . . . . . . . . . Machines Sabotaged . | . . . . . . . . . . . . . . . . . . . . Overloaded Fab Kills . | . . . . . . . . . . . . . . . . . . . . Hacking | -11 -10 -10 -10 -8 -8 -8 -8 -8 -6 -6 -5 -5 -4 -4 -4 -3 -3 -2 -2 --------- Run | Yrd Mat Min Sub Mat Gar Mat Sto Rec Fac Gar Fac Gar Fac Upp Upp Res Tes Res Qua Machines Accessed 95 | . 2 . . 3 1 7 13 6 6 5 1 2 15 . . 12 9 8 5 Terminals 68 | . 2 . . 2 1 5 10 6 3 5 . 2 7 . . 7 6 7 5 Fabricators 7 | . . . . . . . . . 2 . . . 3 . . . 1 1 . Repair Stations 4 | . . . . . . 1 2 . . . . . 1 . . . . . . Recycling Units 1 | . . . . . . . . . . . . . 1 . . . . . . Scanalyzers 6 | . . . . . . . . . . . . . 2 . . 3 1 . . Garrison Access 9 | . . . . 1 . 1 1 . 1 . 1 . 1 . . 2 1 . . Total Hacks 239 | . 6 . . 5 2 35 42 22 12 7 3 2 38 . . 25 15 18 7 Successful 115 | . 3 . . 2 . 17 27 8 4 5 2 1 18 . . 11 3 11 3 Failed 123 | . 3 . . 3 2 18 15 14 8 2 1 1 20 . . 13 12 7 4 Catastrophic 35 | . 1 . . 1 . 2 3 5 2 1 . 1 7 . . 5 7 . . Database Lockouts 1 | . . . . . . . . . . . . . . . . 1 . . . Manual 125 | . 6 . . 3 . 22 17 18 7 . 1 . 16 . . 13 6 10 6 Terminals 170 | . 6 . . 3 2 23 30 22 6 7 . 2 18 . . 17 11 16 7 Fabricators 13 | . . . . . . . . . 4 . . . 6 . . . 1 2 . Repair Stations 17 | . . . . . . 7 8 . . . . . 2 . . . . . . Recycling Units 2 | . . . . . . . . . . . . . 2 . . . . . . Scanalyzers 16 | . . . . . . . . . . . . . 8 . . 6 2 . . Garrison Access 21 | . . . . 2 . 5 4 . 2 . 3 . 2 . . 2 1 . . Terminal Hacks 51 | . . . . 1 . 7 12 7 . 5 . 1 3 . . 3 1 9 2 Record 3 | . . . . . . . . . . . . . . . . . . 2 1 Part Schematic 1 | . . . . . . . . 1 . . . . . . . . . . . Robot Analysis 6 | . . . . . . 1 2 3 . . . . . . . . . . . Open Door 5 | . . . . . . . 3 . . 1 . . . . . . . . 1 Level Access Points 1 | . . . . . . . . . . . . . . . . . . 1 . Branch Access Points 5 | . . . . . . 1 1 . . . . . . . . 1 1 1 . Emergency Access Points 1 | . . . . . . . . . . 1 . . . . . . . . . Machine Index 1 | . . . . . . . . . . . . . 1 . . . . . . Terminal Index 5 | . . . . 1 . 1 1 1 . . . . . . . . . 1 . Repair Station Index 1 | . . . . . . 1 . . . . . . . . . . . . . Alert Level 1 | . . . . . . 1 . . . . . . . . . . . . . Unreport Threat 5 | . . . . . . 2 . . . . . . 1 . . 1 . 1 . Locate Traps 1 | . . . . . . . . . . . . . 1 . . . . . . Dispatch Records 1 | . . . . . . . 1 . . . . . . . . . . . . Patrol Status 1 | . . . . . . . 1 . . . . . . . . . . . . Transport Status 1 | . . . . . . . 1 . . . . . . . . . . . . Hauler Manifests 1 | . . . . . . . 1 . . . . . . . . . . . . Zone Layout 7 | . . . . . . . 1 2 . . . . . . . 1 . 3 . Garrison Registry 1 | . . . . . . . . . . 1 . . . . . . . . . Patrol Navigation 1 | . . . . . . . . . . 1 . . . . . . . . . Security Stations 2 | . . . . . . . . . . 1 . 1 . . . . . . . Fabricator Hacks 2 | . . . . . . . . . 1 . . . 1 . . . . . . Network Status 1 | . . . . . . . . . . . . . 1 . . . . . . Build 1 | . . . . . . . . . 1 . . . . . . . . . . Repair Station Hacks 13 | . . . . . . 4 8 . . . . . 1 . . . . . . Scan Component 8 | . . . . . . 3 4 . . . . . 1 . . . . . . Repair 5 | . . . . . . 1 4 . . . . . . . . . . . . Recycling Unit Hacks 1 | . . . . . . . . . . . . . 1 . . . . . . Retrieve Matter 1 | . . . . . . . . . . . . . 1 . . . . . . Scanalyzer 10 | . . . . . . . . . . . . . 7 . . 3 . . . Insert Component 1 | . . . . . . . . . . . . . 1 . . . . . . Analyze 3 | . . . . . . . . . . . . . 3 . . . . . . Retrieve Study 6 | . . . . . . . . . . . . . 3 . . 3 . . . Garrison Access Hacks 13 | . . . . 1 . 2 2 . 1 . 2 . 2 . . 2 1 . . Unlock Access 4 | . . . . 1 . . . . 1 . 1 . . . . 1 . . . Seal Access 5 | . . . . . . 1 1 . . . . . 1 . . 1 1 . . Coupler Status 4 | . . . . . . 1 1 . . . 1 . 1 . . . . . . Unauthorized Hacks 25 | . 3 . . . . 4 5 1 2 . . . 3 . . 3 1 2 1 Terminals 21 | . 3 . . . . 2 3 1 2 . . . 3 . . 3 1 2 1 Assimilate 2 | . . . . . . . . . . . . . . . . 1 . . 1 Botnet 18 | . 2 . . . . 2 3 1 2 . . . 3 . . 2 1 2 . Operators 1 | . 1 . . . . . . . . . . . . . . . . . . Fabricators . | . . . . . . . . . . . . . . . . . . . . Repair Stations . | . . . . . . . . . . . . . . . . . . . . Recycling Units . | . . . . . . . . . . . . . . . . . . . . Scanalyzers . | . . . . . . . . . . . . . . . . . . . . Garrison Access 4 | . . . . . . 2 2 . . . . . . . . . . . . Intercept 2 | . . . . . . 1 1 . . . . . . . . . . . . Watchers 2 | . . . . . . 1 1 . . . . . . . . . . . . Data Cores Recovered 2 | . . . . . . 1 1 . . . . . . . . . . . . Used . | . . . . . . . . . . . . . . . . . . . . Hacking Detections 86 | . 2 . . 3 1 7 12 6 6 5 1 1 14 . . 9 8 8 3 Full Trace Events 3 | . . . . . . . . . . . . . 3 . . . . . . Feedback Events . | . . . . . . . . . . . . . . . . . . . . Feedback Blocked . | . . . . . . . . . . . . . . . . . . . . Robot Schematics Acquired 4 | . . . . . . . . . . . . . . . . . 4 . . Robots Built 2 | . . . . . . . . . 2 . . . . . . . . . . Authchips 1 | . . . . . . . . . 1 . . . . . . . . . . Time 50 | . . . . . . . . . 50 . . . . . . . . . . Total Robot Build Rating 10 | . . . . . . . . . 10 . . . . . . . . . . Part Schematics Acquired 13 | . . . . . . . . 1 . . . . 1 . . . 11 . . Parts Built . | . . . . . . . . . . . . . . . . . . . . Authchips . | . . . . . . . . . . . . . . . . . . . . Time . | . . . . . . . . . . . . . . . . . . . . Total Part Build Rating . | . . . . . . . . . . . . . . . . . . . . Part Studies Acquired 6 | . . . . . . . . . . . . . 3 . . 3 . . . Parts Repaired 5 | . . . . . . 1 4 . . . . . . . . . . . . Time 241 | . . . . . . 38 203 . . . . . . . . . . . . Parts Recycled . | . . . . . . . . . . . . . . . . . . . . Recycled Matter . | . . . . . . . . . . . . . . . . . . . . Retrieved Matter 146 | . . . . . . . . . . . . . 146 . . . . . . Retrieved Components . | . . . . . . . . . . . . . . . . . . . . Parts Scanalyzed 1 | . . . . . . . . . . . . . 1 . . . . . . Part Schematics Acquired 1 | . . . . . . . . . . . . . 1 . . . . . . Parts Damaged . | . . . . . . . . . . . . . . . . . . . . Bothacking | -11 -10 -10 -10 -8 -8 -8 -8 -8 -6 -6 -5 -5 -4 -4 -4 -3 -3 -2 -2 ------------ Run | Yrd Mat Min Sub Mat Gar Mat Sto Rec Fac Gar Fac Gar Fac Upp Upp Res Tes Res Qua Used RIF Installer 4 | . . . . . 2 . . . . 1 . 1 . . . . . . . Coupler Efficiency 1 | . . . . . . . . . . 1 . . . . . . . . . Signal Jammer 1 | . . . . . . . . . . . . 1 . . . . . . . Patrol Navigation 1 | . . . . . 1 . . . . . . . . . . . . . . Robots Hacked 11 | . . . . . . . . 1 . . . 1 5 . . . 4 . . Non-combat 3 | . . . . . . . . 1 . . . . 2 . . . . . . Combat 8 | . . . . . . . . . . . . 1 3 . . . 4 . . Robot Hacks Applied 11 | . . . . . . . . 1 . . . 1 5 . . . 4 . . parse_system 2 | . . . . . . . . 1 . . . . . . . . 1 . . map_route 2 | . . . . . . . . . . . . . 2 . . . . . . find_scanalyzer 1 | . . . . . . . . . . . . . . . . . 1 . . wipe_record 2 | . . . . . . . . . . . . . 1 . . . 1 . . streamctrl_high 1 | . . . . . . . . . . . . . 1 . . . . . . formatsys_high 3 | . . . . . . . . . . . . 1 1 . . . 1 . . Relay Couplers Released 16 | . . . . . . . . . . 7 . 9 . . . . . . . Machine Destruction 16 | . . . . . . . . . . 7 . 9 . . . . . . . Attached 7 | . . . . . . . . . . . . 1 3 . . 1 1 . 1 Fabnet Peak Effective % . | . . . . . . . . . . . . . . . . . . . . Robots Rewired 40 | . . . . . . . . 36 . 4 . . . . . . . . . Allies Hacked 1 | . . . . . . . . . . . . 1 . . . . . . . Hacks Repelled . | . . . . . . . . . . . . . . . . . . . . Allies | -11 -10 -10 -10 -8 -8 -8 -8 -8 -6 -6 -5 -5 -4 -4 -4 -3 -3 -2 -2 -------- Run | Yrd Mat Min Sub Mat Gar Mat Sto Rec Fac Gar Fac Gar Fac Upp Upp Res Tes Res Qua Total Allies 66 | . . 3 . . . . 10 36 2 7 . 3 2 . . 1 1 . 1 Largest Group 46 | . . 3 1 1 1 . 10 46 31 18 11 3 2 . . 1 1 . 1 Highest-Rated Group 813 | . . 75 31 31 31 . 173 813 573 584 434 142 94 . . 26 152 . 26 Highest-Rated Ally 152 | . . 31 31 31 31 . 29 34 34 95 95 80 47 . . 26 152 . 26 Total Orders 29 | . . . . . . . . 21 . 2 3 . 1 . . . 2 . . STAY 5 | . . . . . . . . 1 . . 2 . 1 . . . 1 . . ROAM 17 | . . . . . . . . 17 . . . . . . . . . . . FOLLOW 2 | . . . . . . . . . . . 1 . . . . . 1 . . DROP 2 | . . . . . . . . 1 . 1 . . . . . . . . . PICKUP 3 | . . . . . . . . 2 . 1 . . . . . . . . . Ally Attacks 431 | . . 1 . 28 29 . 17 21 65 138 48 40 2 . . . 42 . . Total Damage 11892 | . . 22 . 355 428 . 196 262 1102 3022 2082 1633 182 . . . 2608 . . Kills 88 | . . 1 . 3 1 . 3 5 8 27 17 8 1 . . . 14 . . Allies Corrupted 2 | . . . . . . . . . . 1 . 1 . . . . . . . Allies Melted . | . . . . . . . . . . . . . . . . . . . . Intel | -11 -10 -10 -10 -8 -8 -8 -8 -8 -6 -6 -5 -5 -4 -4 -4 -3 -3 -2 -2 ------- Run | Yrd Mat Min Sub Mat Gar Mat Sto Rec Fac Gar Fac Gar Fac Upp Upp Res Tes Res Qua Active Infowar (turns) 5508 | . 216 . . . . . . . . . . . 1128 227 163 1112 2434 153 75 Optics 4691 | . . . . . . . . . . . . . 1128 227 163 1112 2061 . . Sensors 4399 | . . . . . . . . . . . . . 245 227 163 1112 2424 153 75 Terrain 195 | . 195 . . . . . . . . . . . . . . . . . . Traps 1 | . . . . . . . . . . . . . 1 . . . . . . T.N.C. 21 | . 21 . . . . . . . . . . . . . . . . . . Machine Analysis 1199 | . . . . . . . . . . . . . 377 227 163 432 . . . Robot Analysis Total 6 | . . . . . . 1 2 3 . . . . . . . . . . . Derelict Logs Recovered 3 | . . 2 . . . . . . . . . . . . 1 . . . . Drone Launches . | . . . . . . . . . . . . . . . . . . . . Drone Recoveries . | . . . . . . . . . . . . . . . . . . . . Exploration | -11 -10 -10 -10 -8 -8 -8 -8 -8 -6 -6 -5 -5 -4 -4 -4 -3 -3 -2 -2 ------------- Run | Yrd Mat Min Sub Mat Gar Mat Sto Rec Fac Gar Fac Gar Fac Upp Upp Res Tes Res Qua Turns Passed 18793 | 94 716 426 28 332 1214 1422 1454 2740 604 2171 286 1144 1531 227 163 1112 2466 497 166 Spaces Moved 11308 | 49 310 196 18 138 700 698 622 1049 274 1069 128 484 1317 334 322 1043 1394 879 284 Core 1195 | 2 . . . . . . . . . . . . 83 . . . 100 878 132 Treads 6091 | 47 310 196 18 138 700 698 622 1049 274 1069 128 484 358 . . . . . . Legs 1826 | . . . . . . . . . . . . . 6 . . 532 1272 1 15 Wheels . | . . . . . . . . . . . . . . . . . . . . Hover 88 | . . . . . . . . . . . . . 88 . . . . . . Flight 2108 | . . . . . . . . . . . . . 782 334 322 511 22 . 137 Fastest Speed 34 | 50 160 160 160 145 145 145 145 161 157 161 175 158 34 34 34 34 45 50 35 Average Speed 117 | 155 160 160 160 147 145 145 145 161 159 169 175 175 80 38 34 76 111 50 46 Slowest Speed 232 | 160 160 160 160 160 145 225 161 161 161 175 175 225 232 114 34 180 190 120 120 Overloaded Moves . | . . . . . . . . . . . . . . . . . . . . Propulsion Burnouts . | . . . . . . . . . . . . . . . . . . . . Robots Hopped 8 | . . . . . . . . . . . . . 1 1 . 3 3 . . Potential Cave-ins . | . . . . . . . . . . . . . . . . . . . . Cave-ins Triggered . | . . . . . . . . . . . . . . . . . . . . Exploration Rate (%) 45 | 3 56 51 2 10 58 48 91 94 13 91 3 47 53 63 36 30 91 30 35 Regions Visited 19 Branch Regions 8 Pre-discovered Areas 2 | . . 1 . . . . . . . . . . . . 1 . . . . Known Exits Taken 11 | . . . . 1 . 1 1 . 1 . 1 . 1 1 1 1 1 1 . Unknown Exits Taken 5 | 1 1 1 1 . . . . 1 . . . . . . . . . . . Scrap Searched 5 | . . . . . . . . . . . . . . 3 2 . . . . Spaces Dug 73 | . . . . . . . . 15 . . . . 21 3 4 14 9 7 . Terrain Destroyed 446 | . . . . . 78 17 22 21 . 73 1 36 69 3 4 21 94 7 . Melee 41 | . . . . . . . . . . . . . 20 3 4 14 . . . Projectile 161 | . . . . . . 17 22 21 . . 1 6 18 . . 1 75 . . AOE 237 | . . . . . 78 . . . . 73 . 30 31 . . 6 19 . . Terrain Rammed . | . . . . . . . . . . . . . . . . . . . . Walls Destroyed . | . . . . . . . . . . . . . . . . . . . . Machines Disabled . | . . . . . . . . . . . . . . . . . . . . Actions | -11 -10 -10 -10 -8 -8 -8 -8 -8 -6 -6 -5 -5 -4 -4 -4 -3 -3 -2 -2 --------- Run | Yrd Mat Min Sub Mat Gar Mat Sto Rec Fac Gar Fac Gar Fac Upp Upp Res Tes Res Qua Total 15280 | 59 422 307 17 215 808 979 1060 2009 401 1346 160 654 1621 423 358 1244 1961 923 313 Wait 2381 | 2 22 110 . 16 25 173 322 821 98 146 4 57 83 85 28 89 277 7 16 Move 11273 | 48 309 195 17 137 699 697 621 1048 273 1068 127 483 1314 331 321 1036 1387 878 284 Hop 8 | . . . . . . . . . . . . . 1 1 . 3 3 . . Pick Up 94 | 1 6 . . 9 5 3 6 9 2 20 4 8 5 . . 6 9 . 1 Fast Attach 179 | 5 6 . . 2 4 1 8 . 3 8 . 14 35 1 1 23 47 17 4 Attach 47 | . . . . 4 . . . . 2 4 4 7 8 . . 4 9 3 2 Detach 43 | . 4 . . 1 1 . 1 . . 8 1 3 2 1 . 9 7 4 1 Swap 85 | . 9 . . 5 13 5 7 10 1 5 2 5 3 . . 5 15 . . Drop 183 | . 8 . . 11 15 3 9 10 . 31 3 12 12 . . 17 46 5 1 Fire 671 | 3 58 . . 25 46 63 54 25 18 50 15 63 75 . . 17 153 4 2 Melee 179 | . . . . . . . 1 85 . 6 . . 41 4 8 34 . . . Ram 2 | . . . . . . . . . . . . . . . . . . . 2 Kick 14 | . . . . . . . . . . . . . . . . 1 8 5 . Crush 26 | . . 2 . 5 . 6 3 . 4 . . 2 4 . . . . . . Escape Stasis 38 | . . . . . . . . . . . . . 38 . . . . . . Rewire 1 | . . . . . . . . 1 . . . . . . . . . . . Trap 56 | . . . . . . 28 28 . . . . . . . . . . . . Miscellaneous . | . . . . . . . . . . . . . . . . . . . . Route ------- -11/Scrapyard -10/Materials -10/Mines -10/Subcaves -8/Materials -8/Garrison (discovered 2 exits: *Mat x2) -8/Materials (discovered 2 exits: [*Fac] / *Sto) -8/Storage (discovered 2 exits: [*Fac] / *Rec) -8/Recycling -6/Factory (discovered 2 exits: [*Ext] / Gar) -6/Garrison (discovered 3 exits: *Fac x3) -5/Factory -5/Garrison (discovered 2 exits: *Fac x2) -4/Factory (discovered 2 exits: *Res / *Upp) -4/Upper Caves -4/Upper Caves -3/Research (discovered 4 exits: Arm / *Tes x2 / Gar) -3/Testing -2/Research (discovered 5 exits: *Acc x3 / *Qua x2) -2/Quarantine History --------- Turn | Location | Event 29 | -11/Scrapyard | Discovered new exit (range 14) 95 | -11/Scrapyard | Entered Materials 702 | -10/Materials | Build established: Mutant 787 | -10/Materials | Discovered new exit (range 16) 811 | -10/Materials | Entered Mines 814 | -10/Mines | Received a Mining Laser from a helpful Derelict 921 | -10/Mines | Assembled infested the area 967 | -10/Mines | Learned location of Zion (-7) 1143 | -10/Mines | Learned Materials stockpile data 1224 | -10/Mines | Discovered new exit (range 3) 1237 | -10/Mines | Entered Subcaves 1237 | -10/Subcaves | Accompanied by 1 ally 1242 | -10/Subcaves | Led the pair of lost Derelicts to an unsafe place 1252 | -10/Subcaves | Discovered new exit (range 9) 1265 | -10/Subcaves | Entered Materials 1265 | -8/Materials | Accompanied by 1 ally 1265 | -8/Materials | Evolved 4 slots: Propulsion x1, Utility x2, Weapon x1 1386 | -8/Materials | Identified exit to Garrison 1448 | -8/Materials | Garrison activated, responded to threat 1597 | -8/Materials | Entered Garrison 1597 | -8/Garrison | Accompanied by 1 ally 1734 | -8/Garrison | Triggered checkpoint 1759 | -8/Garrison | Triggered checkpoint 1781 | -8/Garrison | Triggered checkpoint 1950 | -8/Garrison | Discovered new exit (range 11) 2354 | -8/Garrison | Discovered new exit (range 13) 2369 | -8/Garrison | Installed Relay Interface Framework 2531 | -8/Garrison | Build established: Tank 2771 | -8/Garrison | Expanded RIF knowledge: Patrol Navigation 2804 | -8/Garrison | Phase Generator disabled 2811 | -8/Garrison | Entered Materials 2857 | -8/Materials | Discovered new exit (range 11) 2914 | -8/Materials | Discovered new exit (range 16) 3667 | -8/Materials | Identified exit to Storage 3955 | -8/Materials | Repaired Adv. Treads 4233 | -8/Materials | Entered Storage 4575 | -8/Storage | Repaired Imp. Heavy Armor Plating 4789 | -8/Storage | Repaired Broken Adv. Treads 4841 | -8/Storage | Repaired Hvy. Machine Gun 4892 | -8/Storage | Repaired Hvy. Machine Gun 5043 | -8/Storage | Identified exit to Recycling 5174 | -8/Storage | Assisted by bots powering up and referring to "LRC-V3" 5265 | -8/Storage | Allied Derelicts emerged from ambush trap array 5266 | -8/Storage | Discovered new exit (range 8) 5473 | -8/Storage | Build established: Commander-Tank 5669 | -8/Storage | Used back door to open Recycling access 5687 | -8/Storage | Entered Recycling 5687 | -8/Recycling | Accompanied by 10 allies 6199 | -8/Recycling | Discovered new exit (range 5) 6656 | -8/Recycling | Entered Scraplab 8427 | -8/Recycling | Entered Factory 8427 | -6/Factory | Accompanied by 30 allies 8427 | -6/Factory | Evolved 4 slots: Propulsion x1, Utility x3 8568 | -6/Factory | Fabricated E-15 Imp? 8787 | -6/Factory | Lost 7 allies 8828 | -6/Factory | Discovered new exit (range 15) 8846 | -6/Factory | Garrison activated, responded to threat 8913 | -6/Factory | Identified exit to Garrison 9001 | -6/Factory | Lost 7 allies 9031 | -6/Factory | Entered Garrison 9031 | -6/Garrison | Accompanied by 17 allies 9047 | -6/Garrison | Triggered checkpoint 9105 | -6/Garrison | Triggered checkpoint 9112 | -6/Garrison | Garrison Relay disabled 9122 | -6/Garrison | Lost 4 allies 9253 | -6/Garrison | Learned Factory security intel 9257 | -6/Garrison | Triggered checkpoint 9342 | -6/Garrison | Phase Generator disabled 9382 | -6/Garrison | Found embedded Infiltrators 9412 | -6/Garrison | Rescued a captive Derelict 9577 | -6/Garrison | Triggered checkpoint 9597 | -6/Garrison | Triggered checkpoint 9612 | -6/Garrison | Triggered checkpoint 9621 | -6/Garrison | Triggered checkpoint 9797 | -6/Garrison | Discovered new exit (range 9) 9890 | -6/Garrison | Spotted B-75 Beast 9910 | -6/Garrison | Allies destroyed B-75 Beast 9977 | -6/Garrison | Found Gamma Bomb Array 10074 | -6/Garrison | Discovered new exit (range 12) 10115 | -6/Garrison | Lost 3 allies 10121 | -6/Garrison | Expanded RIF knowledge: Coupler Efficiency 10178 | -6/Garrison | Found Relay Coupler [Proto] 10181 | -6/Garrison | Found Relay Coupler [Proto] 10184 | -6/Garrison | Found Relay Coupler [Proto] 10187 | -6/Garrison | Found Relay Coupler [Proto] 10390 | -6/Garrison | Discovered new exit (range 3) 10449 | -6/Garrison | Triggered checkpoint 10470 | -6/Garrison | Garrison Relay disabled 10482 | -6/Garrison | Discovered new exit (range 59) 10482 | -6/Garrison | Discovered new exit (range 16) 10482 | -6/Garrison | Discovered new exit (range 62) 11202 | -6/Garrison | Entered Factory 11202 | -5/Factory | Accompanied by 11 allies 11202 | -5/Factory | Evolved 2 slots: Power x2 11285 | -5/Factory | Garrison activated, responded to threat 11295 | -5/Factory | Lost 4 allies 11357 | -5/Factory | Identified exit to Garrison 11434 | -5/Factory | High security lockdown imminent 11488 | -5/Factory | Entered Garrison 11488 | -5/Garrison | Accompanied by 3 allies 11523 | -5/Garrison | Lost 3 allies 11560 | -5/Garrison | Triggered checkpoint 11566 | -5/Garrison | Build established: Bothacker-Tank 11591 | -5/Garrison | Learned Factory security intel 11611 | -5/Garrison | Garrison Relay disabled 11682 | -5/Garrison | Triggered checkpoint 11916 | -5/Garrison | Discovered new exit (range 13) 12029 | -5/Garrison | Found embedded Infiltrators 12032 | -5/Garrison | Triggered checkpoint 12150 | -5/Garrison | Discovered new exit (range 10) 12196 | -5/Garrison | Expanded RIF knowledge: Signal Jamming 12280 | -5/Garrison | Triggered checkpoint 12315 | -5/Garrison | Garrison Relay disabled 12385 | -5/Garrison | Found Prototype Processor 12385 | -5/Garrison | Identified Exp. Signal Interpreter 12389 | -5/Garrison | Found Prototype Processor 12389 | -5/Garrison | Identified Exp. Core Analyzer 12409 | -5/Garrison | Lost 5 parts (2p1u2w) 12617 | -5/Garrison | Identified exit to Factory 12632 | -5/Garrison | Entered Factory 12632 | -4/Factory | Evolved 2 slots: Utility x2 12791 | -4/Factory | Build established: Bothacker-Gunner 13132 | -4/Factory | First assault squad dispatched 13347 | -4/Factory | Lost 14 parts (3p4n3u4w) 13429 | -4/Factory | Released all parts (8) 13627 | -4/Factory | Core integrity fell below 50% 13708 | -4/Factory | Lost 5 parts (1n4u) 13792 | -4/Factory | Discovered new exit (range 17) 13914 | -4/Factory | Build established: Mutant 13949 | -4/Factory | Watched by a mysterious "MATRIX" hacker 14146 | -4/Factory | Discovered new exit (range 6) 14148 | -4/Factory | Identified exit to Upper Caves 14163 | -4/Factory | Entered Upper Caves 14380 | -4/Upper Caves | Discovered new exit (range 10) 14383 | -4/Upper Caves | Identified exit to Upper Caves 14390 | -4/Upper Caves | Entered another Upper Caves area 14390 | -4/Upper Caves | Discovered new exit (range 15) 14399 | -4/Upper Caves | Identified exit to Research 14416 | -4/Upper Caves | Learned location of Quarantine (-2) 14553 | -4/Upper Caves | Entered Research 14553 | -3/Research | Evolved 2 slots: Utility x1, Weapon x1 14616 | -3/Research | Build established: Scout 14704 | -3/Research | Identified exit to Garrison 15053 | -3/Research | Search patrols dispatched 15287 | -3/Research | Central database locked down 15517 | -3/Research | Identified exit to Armory 15517 | -3/Research | Identified exit to Testing 15529 | -3/Research | Build established: Skirmisher 15602 | -3/Research | Cargo convoy interrupted 15665 | -3/Research | Entered Testing 16174 | -3/Testing | System corruption reached 10% 16332 | -3/Testing | Scanned by Researcher 16477 | -3/Testing | Discovered new exit (range 21) 16510 | -3/Testing | Identified exit to Research 16533 | -3/Testing | Found Prototype Hackware 16613 | -3/Testing | Found Prototype Energy Cannon 16613 | -3/Testing | Identified Potential Cannon 16759 | -3/Testing | Lost 3 parts (1n2u) 16778 | -3/Testing | Spotted Striker 16778 | -3/Testing | Spotted Striker 16808 | -3/Testing | Destroyed Striker 16817 | -3/Testing | Spotted Alpha 7 16821 | -3/Testing | Assimilated Alpha 7 with formatsys_high 16824 | -3/Testing | Destroyed Striker 16930 | -3/Testing | Found Exp. Signal Interpreter 17155 | -3/Testing | Build established: Scavenger-Skirmisher 17415 | -3/Testing | First assault squad dispatched 17584 | -3/Testing | Destroyed Alpha 7 17766 | -3/Testing | Found Prototype Energy Gun 17766 | -3/Testing | Identified Warp Gun 17931 | -3/Testing | Lost 4 parts (1p1n2u) 17962 | -3/Testing | Core integrity fell below 50% 18002 | -3/Testing | Lost 4 parts (1p1n2u) 18036 | -3/Testing | Identified System Mapper 18064 | -3/Testing | Found Prototype Ballistic Cannon 18064 | -3/Testing | Identified Perforator 18130 | -3/Testing | Lost 3 parts (2n1u) 18131 | -3/Testing | Entered Research 18131 | -2/Research | Evolved 2 slots: Propulsion x1, Utility x1 18273 | -2/Research | Identified exit to Access 18354 | -2/Research | Build established: Hacker-Mutant 18378 | -2/Research | Found Unknown Device 18378 | -2/Research | Identified Launcher Loader 18381 | -2/Research | First assault squad dispatched 18489 | -2/Research | Identified exit to Quarantine 18602 | -2/Research | Spotted B-90 Cyclops 18628 | -2/Research | Entered Quarantine 18738 | -2/Quarantine | Met incapacitated Sigix Warrior 18738 | -2/Quarantine | Lockdown squad dispatched 18746 | -2/Quarantine | Acquired the access code to the Sigix quarantine chamber 18747 | -2/Quarantine | Unlocked Sigix quarantine chamber 18751 | -2/Quarantine | Lost 6 parts (3n3u) 18752 | -2/Quarantine | Found Sigix Containment Pod 18784 | -2/Quarantine | Core integrity fell below 50% 18786 | -2/Quarantine | Spotted Lightning 18786 | -2/Quarantine | Spotted Lightning 18787 | -2/Quarantine | Spotted Lightning 18793 | -2/Quarantine | Core integrity fell below 20% 18794 | -2/Quarantine | Destroyed by S-43 Plague with Heavy Machine Gun Last Messages --------------- 18782_ H-88 Terminator knocked back. 18782_ G-73 Enforcer knocked back. 18782_ H-88 Terminator knocked back. 18782_ Lrn. Sensor Array destroyed. 18782_ Knocked back. 18782_ Slug penetrates G-73 Enforcer. 18782_ Penetrated by Slug. 18782_ Slug penetrates Wall. 18782_ Imp. System Guard destroyed. 18782_ Slug penetrates Wall. 18783_ Slug penetrates G-73 Enforcer. 18783_ Penetrated by Slug. 18787_ Slug penetrates Organic Neutralizer. 18788_ Penetrated by EMDS Slug. 18789_ Containment Shield disabled. 18789_ Penetrated by EMDS Slug. 18789_ Imp. Targeting Computer destroyed. 18791_ Penetrated by EMDS Slug. 18792_ Terminal disabled. 18793_ Penetrated by EMDS Slug. Map ----- +----------------------------------------------------+ | #" * # # # !#????? | | #"" ^ #####/#### # * #????? | | #"" ^ #??# + #????? | | #""" " T#T#### #### ###### #????? | | #"""""""""###??# """ #????? #????? | | #"""""""""#????# """ #?????? #????? | | ###########????# """ #??########????? | | ???????????????# """ #? ???????? | | ???????????????# """ #? """ ??????? | | ???????????????# #### """ # """ [ ??????? | | ???????????????##+##??# # """ #?????? | | ??????????????????????# + """ *#?????? | | ??????????????????????# h""""" # """ #?????? | | ??????????????????????# """" # """ = ??????? | | ??????????????????????# """"" #? """ ??????? | | ??????????????????????# "" "" #? ???????? | | ??????????????????????# h #??#####???????? | | ???????????????????#### i "" #??????????????? | | ???????????????????# """#??????????????? | | ???????????????????# "#??????????????? | | ???????????????????# """#??????????????? | | ???????????????????####hss "" #??????????????? | | ??????????????????????#h #??????????????? | | ??????????????????????# gss #??????????????? | | ?????????????########## g #########??????????????? | | ???????????? """T""" # @#??????????????????????? | | ???????????"" # A #??????????????????????? | | ??????????""" # s#??????????????????????? | | ???????????"" *# #??????????????????????? | | ??????????? # #???##?????????????????? | | ????????????? = # #??""#?????????????????? | | ????????????### ## # k###T"#########?????????? | | ???????????## ?????? | | ???????????# ! ?????? | | ?????????#### u k ?????? | | ?????????# R ??????? | | ?????????# ################## ??????? | | ??######## ?????????????? | | R# """ """ ?????????????? | | ???????# # """ """ "????????????? | | ???????# # """ """ "????????????? | | ???????# # #!= """ """ "????????????? | | ???????##??# #!% """ """ ""???????????? | | ???????????# !| """ """ """ #????????? | | ???########## * #?? ????? | | ???# #####+############ ???? | | ???# "" # ??? | | ???+ "" # ??? | | ????? """"" # ??? | | ????? "!""" + "" ???? | +----------------------------------------------------+ Best States ------------- Heat Dissipation 136 Energy Generation 55 Energy Capacity 990 Matter Stores 500 Matter Capacity 700 Sight Range 23 Robot Scan Range 18 Terrain Scan Range 14 Terrain Scan Density 10 Power Amplification 20 Base Temperature (-) 200 Corruption Containment 12 Armor Coverage 1050 Melee Speed Boost 30 Evasion (%) 82 Targeting Accuracy 6 Launcher Accuracy 40 Target Analysis 12 Core Analysis 9 Armor Integrity Analysis 40 Recoil Reduction 4 Energy Filtering 50 Offensive Hacking 30 Defensive Hacking 11 Relay Coupler Types 2 Relay Coupler Value 38 Authchip Count 5 Item Schematics ----------------- Powered Armor | -8/Recycling | Hacked Com. Linear Accelerator | -4/Factory | Scanalyzed Enh. Force Rifle | -3/Testing | Archive Prc. Phase Gun | -3/Testing | Archive Diametric Drive | -3/Testing | Archive Exp. Signal Interpreter | -3/Testing | Archive Adv. EM Disruption Field | -3/Testing | Archive Exp. Focal Shield | -3/Testing | Archive Centrium Medium Armor Plating | -3/Testing | Archive Exp. Matter Compressor | -3/Testing | Archive Adv. Micro-nuke Launcher | -3/Testing | Archive Cld. Phase Gun | -3/Testing | Archive Exp. Thermal Shield | -3/Testing | Archive Robot Schematics ------------------ T-07 Excavator | -3/Testing | Archive H-77 Assassin | -3/Testing | Archive A-15 Conveyor | -3/Testing | Archive W-44 Eye | -3/Testing | Archive Fabricated ------------ E-15 Imp | x2 | -6/Factory | Preloaded, Authchip Repaired ---------- Adv. Treads | 27% | -8/Materials Imp. Heavy Armor Plating | 25% | -8/Storage Adv. Treads | 35% | -8/Storage | Broken Hvy. Machine Gun | 28% | -8/Storage Hvy. Machine Gun | 39% | -8/Storage Studied --------- Adv. Datajack | -4/Factory | Hacked Force Lance | -4/Factory | Hacked Imp. Antigrav System | -4/Factory | Hacked Tesla Rifle | -3/Research | Hacked Biometal Leg | -3/Research | Hacked Imp. Thunder Leg | -3/Research | Hacked Alien Tech Used ----------------- None Achievements -------------- Powerful Protocols Tailor-made Challenges ------------ None Game ------ Seed ProjectionLauncherReplicator Manual? 0 Play Time 04:11:56 Cumulative 199.1 hours Start 2026.07.28 @ 22:14:36 End 2026.07.29 @ 10:39:45 Sessions 3 Manual Loads 0 Difficulty Rogue Special Mode None Game No. 114 Rogue 114 Adventurer 0 Explorer 0 Win Type - Total 4 Types 4/0/0/0/0/0/0/0/0/0 Lore% 73 Gallery% 64 Achievement% 55 Wizard Run 0 Options --------- Layout 1 ASCII 0 Keyboard 0 Movement Numpad Keybinds 0 Fullscreen 1 Font 24/Smallcaps Map View 50x35 Zoom Use 0% Tactical HUD 1 Map Filters NONE Filters NONE Steam 1 RUN: 27fb10ba-ff4e-4673-9122-8b16d48314cd